bitfinex/quotes_SOLUSD_20260228
["timestamp","ask_amount","ask_price","bid_price","bid_amount"]
[1772317970982,4.33177449,84.939,84.901,4.24828859]
[1772317971174,4.33177449,84.939,84.903,4.24828859]
[1772317971489,19.79757674,84.94,84.903,4.24828859]
[1772317971490,11.7730952,84.94,84.903,4.24828859]
[1772317971787,19.79757674,84.94,84.903,4.24828859]
[1772317971979,4.33177449,84.939,84.903,4.24828859]
[1772317972286,4.33177449,84.937,84.905,4.24828859]
[1772317974503,4.33177449,84.937,84.907,4.24828859]
[1772317974872,4.33177449,84.948,84.907,4.24828859]
[1772317975083,11.77204609,84.947,84.907,4.24828859]
[1772317975287,16.10382058,84.947,84.907,4.24828859]
[1772317975586,0.1,84.96,84.931,4.24828859]
[1772317975788,103.2,85.069,84.908,1.17774532]
[1772317975789,11.81831556,84.98,84.941,4.24828859]
[1772317976191,3.79383402,84.98,84.941,4.24828859]
[1772317976398,8.12448154,84.98,84.941,4.24828859]
[1772317976700,8.12448154,84.98,84.943,4.24828859]
[1772317976701,12.45625603,84.98,84.943,4.24828859]
[1772317976986,12.45625603,84.98,84.942,11.77273904]
[1772317976987,0.1,84.98,84.951,4.24828859]
[1772317978292,0.5882913,85.0,84.961,4.24828859]
[1772317978587,0.5882913,85.0,84.963,4.24828859]
[1772317978972,11.7649827,84.998,84.963,4.24828859]
[1772317979172,8.02448154,84.99,84.963,4.24828859]
[1772317979392,8.02448154,84.99,84.957,16.01886343]
[1772317979393,4.33177449,84.989,84.957,16.01886343]
[1772317979790,8.02448154,84.98,84.958,4.24828859]
[1772317980889,16.09823008,84.988,84.959,16.01867195]
[1772317981080,4.33177449,84.987,84.959,16.01867195]
[1772317981402,0.5882913,85.0,84.961,4.24828859]
[1772317981696,0.5882913,85.0,84.959,41.19634176]
[1772317981697,4.33177449,85.019,84.981,4.24828859]
[1772317982194,4.33177449,85.009,84.981,4.24828859]
[1772317982399,8.02448154,85.0,84.981,4.24828859]
[1772317982896,16.09537321,85.008,84.981,4.24828859]
[1772317983297,4.33177449,85.007,84.981,4.24828859]
[1772317983500,8.02448154,85.0,84.981,4.24828859]
[1772317983700,3.69383402,85.03,84.982,4.24828859]
[1772317983701,8.02448154,85.02,84.982,4.24828859]
[1772317984188,4.33177449,85.019,84.982,4.24828859]
[1772317984385,4.33177449,85.018,84.982,4.24828859]
[1772317984583,4.33177449,85.026,84.982,4.24828859]
[1772317984801,16.09298259,85.026,84.984,4.24828859]
[1772317985096,58.25878317,85.084,84.983,11.76705929]
[1772317985097,4.33177449,85.087,85.025,4.24828859]
[1772317985301,8.02448154,85.08,85.041,4.24828859]
[1772317985507,8.02448154,85.07,85.041,4.24828859]
[1772317985699,4.33177449,85.073,85.041,4.24828859]
[1772317985876,53.02,85.126,85.054,0.28432314]
[1772317986079,4.33177449,85.134,85.081,4.24828859]
[1772317986297,4.33177449,85.129,85.081,4.24828859]
[1772317986725,4.33177449,85.139,85.081,4.24828859]
[1772317986879,4.33177449,85.159,85.111,4.24828859]
[1772317987079,7.37983773,85.161,85.131,4.24828859]
[1772317987296,7.37983773,85.161,85.088,17.62637948]
[1772317987297,7.95080275,85.15,85.088,17.62637948]
[1772317987480,7.95080275,85.12,85.068,11.75530164]
[1772317987681,7.95080275,85.09,85.04,7.95080275]
[1772317987880,4.33177449,85.089,85.033,42.81483507]
[1772317988101,4.33177449,85.079,85.033,42.81483507]
[1772317988279,4.33177449,85.09,85.034,11.76000188]
[1772317988480,7.95080275,85.09,85.033,42.81483507]
[1772317988684,7.95080275,85.07,85.033,42.81483507]
[1772317988904,7.95080275,85.07,85.034,11.76000188]
[1772317989090,19.70586031,85.07,85.033,42.81483507]
[1772317989292,19.70586031,85.07,85.035,3.73178866]
[1772317989502,7.95080275,85.07,85.035,3.73178866]
[1772317989702,11.75516345,85.069,85.035,3.73178866]
[1772317989904,7.95080275,85.07,85.035,3.73178866]
[1772317990299,19.7059347,85.07,85.035,3.73178866]
[1772317990602,7.95080275,85.06,85.035,3.73178866]
[1772317990783,4.33177449,85.059,85.033,38.54264877]
[1772317990987,4.33177449,85.039,85.002,3.73178866]
[1772317991191,7.95080275,85.02,84.991,3.73178866]
[1772317991401,7.95080275,85.01,84.975,3.73178866]
[1772317991607,7.95080275,85.0,84.975,3.73178866]
[1772317991817,7.95080275,85.03,84.991,3.73178866]
[1772317992102,4.33177449,85.039,84.991,3.73178866]
[1772317992285,4.33177449,85.029,84.974,41.18905559]
[1772317992486,4.33177449,85.029,84.981,3.73178866]
[1772317992813,12.28257724,85.04,84.993,3.73178866]
[1772317993311,7.95080275,85.03,84.993,3.73178866]
[1772317993486,7.95080275,85.02,84.985,15.4984855]
[1772317993887,7.95080275,85.01,84.977,11.76783004]
[1772317994113,7.95080275,85.0,84.975,11.7681671]
[1772317994406,7.95080275,85.0,84.968,11.76903899]
[1772317994799,7.95080275,84.98,84.941,3.73178866]
[1772317995103,12.28257724,84.98,84.95,11.77163037]
[1772317995303,4.33177449,84.969,84.933,11.7739204]
[1772317995510,7.95080275,84.96,84.92,7.95080275]
[1772317995692,7.95080275,84.96,84.921,4.24828859]
[1772317996093,4.33177449,84.959,84.921,4.24828859]
[1772317996306,7.95080275,84.95,84.91,4.24828859]
[1772317996689,4.44130785,84.949,84.91,4.24828859]
[1772317996885,4.44130785,84.949,84.911,11.77703713]
[1772317997090,7.95080275,84.93,84.911,11.77703713]
[1772317997290,7.95080275,84.93,84.9,4.3412043]
[1772317997291,7.95080275,84.93,84.904,11.77800603]
[1772317997508,7.95080275,84.93,84.89,37.40058641]
[1772317997509,4.44130785,84.929,84.888,16.12143236]
[1772317997693,4.44130785,84.929,84.89,7.95080275]
[1772317997902,4.44130785,84.929,84.891,4.3412043]
[1772317998408,4.44130785,84.929,84.888,11.78022806]
[1772317998593,41.2016763,84.948,84.888,11.78022806]
[1772317998594,4.44130785,84.919,84.888,11.78022806]
[1772317998788,4.44130785,84.919,84.88,11.78123612]
[1772317999110,12.3921106,84.9,84.869,11.7827841]
[1772317999405,4.44130785,84.899,84.857,16.12573592]
[1772317999711,11.77606632,84.918,84.861,4.3412043]
[1772317999712,7.95080275,84.9,84.861,4.3412043]
[1772317999906,4.44130785,84.909,84.864,4.3412043]
[1772318000513,7.95080275,84.89,84.858,4.3412043]
[1772318000695,4.44130785,84.899,84.858,4.3412043]
[1772318001105,4.44130785,84.899,84.859,11.78425387]
[1772318001418,4.44130785,84.922,84.871,4.3412043]
[1772318001732,4.44130785,84.933,84.891,4.3412043]
[1772318001904,4.44130785,84.946,84.911,4.3412043]
[1772318002306,4.44130785,84.957,84.911,4.3412043]
[1772318002705,7.95080275,84.95,84.911,4.3412043]
[1772318002903,4.44130785,84.957,84.911,4.3412043]
[1772318003208,4.44130785,84.957,84.92,7.95080275]
[1772318003407,4.44130785,84.957,84.913,4.3412043]
[1772318004709,4.44130785,84.968,84.94,7.95080275]
[1772318005004,4.44130785,84.968,84.931,4.3412043]
[1772318005187,4.44130785,84.968,84.94,7.95080275]
[1772318007102,4.44130785,84.968,84.941,41.20507175]
[1772318007699,4.44130785,84.978,84.95,7.95080275]
[1772318008306,4.44130785,84.978,84.941,11.77287764]
[1772318009397,4.44130785,84.969,84.926,11.77491707]
[1772318009716,4.44130785,84.959,84.926,11.77491707]
[1772318010500,4.44130785,84.959,84.92,7.95080275]
[1772318010501,4.44130785,84.939,84.9,7.95080275]
[1772318010700,4.44130785,84.939,84.913,11.77670536]
[1772318011119,4.44130785,84.949,84.917,11.776205]
[1772318012418,4.44130785,84.929,84.894,11.77939548]
[1772318012720,4.44130785,84.929,84.895,4.3412043]
[1772318013607,4.44130785,84.929,84.896,16.12032227]
[1772318013812,4.44130785,84.929,84.897,4.3412043]
[1772318014821,4.44130785,84.937,84.897,4.3412043]
[1772318015320,4.44130785,84.937,84.898,11.77884049]
[1772318015897,7.95080275,84.93,84.898,11.77884049]
[1772318016113,4.44130785,84.935,84.899,4.3412043]
[1772318017700,4.44130785,84.935,84.9,11.77856301]
[1772318017905,4.44130785,84.933,84.901,4.3412043]
[1772318018807,4.44130785,84.994,84.901,4.3412043]
[1772318019009,7.95080275,85.01,84.951,4.3412043]
[1772318019305,7.95080275,85.01,84.96,7.95080275]
[1772318019504,11.76346033,85.009,84.96,12.29200705]
[1772318019905,11.76346033,85.009,84.962,4.3412043]
[1772318020117,11.76346033,85.009,84.97,7.95080275]
[1772318020414,11.76346033,85.009,84.962,4.3412043]
[1772318020621,11.76346033,85.009,84.97,7.95080275]
[1772318021026,1.61673877,85.006,84.971,11.76872109]
[1772318021711,29.40377177,85.024,84.971,11.76872109]
[1772318021712,1.61673877,85.016,84.972,4.3412043]
[1772318021923,1.61673877,85.016,84.98,7.95080275]
[1772318022230,13.37927962,85.016,84.98,7.95080275]
[1772318022417,1.61673877,85.015,84.981,4.3412043]
[1772318022814,7.95080275,85.04,85.0,7.95080275]
[1772318023019,11.75931043,85.039,85.002,11.76442907]
[1772318023220,11.75931043,85.039,85.003,4.3412043]
[1772318023420,13.3760492,85.039,85.003,4.3412043]
[1772318024027,1.61673877,85.038,85.003,4.3412043]
[1772318024256,1.61673877,85.038,84.997,11.76507065]
[1772318024405,1.61673877,85.038,84.993,4.3412043]
[1772318024406,7.95080275,85.03,84.993,4.3412043]
[1772318024609,1.61673877,85.029,84.984,4.3412043]
[1772318025221,1.61673877,85.027,84.986,4.1837325]
[1772318025938,1.61673877,85.019,84.964,4.1837325]
[1772318026112,7.95080275,84.99,84.957,4.1837325]
[1772318026308,7.95080275,84.98,84.947,4.1837325]
[1772318026510,1.61673877,84.979,84.947,4.1837325]
[1772318026711,7.95080275,84.97,84.939,11.77309969]
[1772318026930,7.95080275,84.97,84.937,4.13921724]
[1772318027234,7.95080275,84.95,84.907,4.13921724]
[1772318027533,7.95080275,84.96,84.921,4.13921724]
[1772318027829,7.95080275,84.98,84.941,4.13921724]
[1772318028128,13.38344217,84.986,84.941,4.13921724]
[1772318028432,13.38344217,84.986,84.95,7.95080275]
[1772318028833,13.38344217,84.986,84.941,4.13921724]
[1772318029333,13.38344217,84.986,84.943,4.13921724]
[1772318029523,1.61673877,84.985,84.943,4.13921724]
[1772318030339,7.95080275,84.98,84.943,4.13921724]
[1772318031619,7.95080275,84.98,84.944,11.77246185]
[1772318031819,7.95080275,84.97,84.944,11.77246185]
[1772318032138,7.95080275,84.97,84.943,4.13921724]
[1772318032523,7.95080275,84.96,84.933,4.13921724]
[1772318032847,7.95080275,84.98,84.941,4.13921724]
[1772318033840,7.95080275,84.98,84.943,4.13921724]
[1772318034050,7.95080275,84.99,84.943,4.13921724]
[1772318034224,7.95080275,84.99,84.951,4.13921724]
[1772318034545,1.61673877,84.989,84.951,4.13921724]
[1772318034724,7.95080275,84.98,84.951,4.13921724]
[1772318035040,1.61673877,84.989,84.951,4.13921724]
[1772318037237,1.61673877,84.989,84.952,11.77135323]
[1772318037433,11.76636701,84.988,84.952,11.77135323]
[1772318037641,1.61673877,84.987,84.952,11.77135323]
[1772318041432,1.61673877,84.987,84.953,4.13921724]
[1772318042544,1.61673877,84.986,84.954,11.77107611]
[1772318043949,1.61673877,84.985,84.954,11.77107611]
[1772318044136,1.61673877,84.985,84.955,4.13921724]
[1772318044845,1.61673877,84.985,84.95,7.95080275]
[1772318045045,1.61673877,84.985,84.952,4.13921724]
[1772318045627,11.43118098,84.986,84.951,11.7714918]
[1772318046427,11.43118098,84.986,84.951,16.26332645]
[1772318046734,11.43118098,84.986,84.952,4.49183465]
[1772318047238,11.76484429,84.999,84.953,11.77121467]
[1772318048250,11.76484429,84.999,84.953,16.26304932]
[1772318048741,11.76484429,84.999,84.956,4.49183465]
[1772318049140,29.40540047,85.019,84.971,4.49183465]
[1772318049348,11.76193836,85.02,84.981,4.49183465]
[1772318049349,19.74745529,85.02,84.981,4.49183465]
[1772318049539,3.69383402,85.016,84.981,4.49183465]
[1772318049742,19.74745529,85.02,84.981,4.49183465]
[1772318050044,11.76193836,85.02,84.981,4.49183465]
[1772318050555,3.69383402,85.026,84.983,4.49183465]
[1772318050955,21.35412391,85.048,85.01,7.98551693]
[1772318051740,9.59593434,85.048,85.021,4.49183465]
[1772318052734,9.59593434,85.048,85.023,4.49183465]
[1772318052934,9.59593434,85.048,85.031,4.49183465]
[1772318054273,0.1,85.07,85.043,4.13921724]
[1772318054435,0.1,85.07,85.05,7.98551693]
[1772318054641,0.1,85.07,85.05,12.12473417]
[1772318054846,0.1,85.07,85.051,15.89686853]
[1772318055936,0.1,85.07,85.051,11.75765129]
[1772318056363,0.1,85.07,85.045,11.75836417]
[1772318056564,4.36187458,85.07,85.045,11.75836417]
[1772318057437,12.34739151,85.07,85.029,4.19916205]
[1772318057658,4.26187458,85.069,85.031,4.19916205]
[1772318058938,0.1,85.07,85.031,4.19916205]
[1772318059139,0.1,85.07,85.033,4.19916205]
[1772318060558,0.1,85.07,85.032,11.76027848]
[1772318060559,0.1,85.07,85.05,12.18467898]
[1772318060738,0.1,85.07,85.051,4.19916205]
[1772318061140,0.1,85.07,85.052,11.75751305]
[1772318061344,0.1,85.07,85.061,4.19916205]
[1772318061660,1e-08,85.08,85.061,4.19916205]
[1772318061849,1e-08,85.08,85.052,41.15129567]
[1772318061850,1e-08,85.08,85.071,4.19916205]
[1772318063342,1e-08,85.08,85.072,11.75474891]
[1772318063543,1e-08,85.08,85.073,4.19916205]
[1772318063738,3.8383746,85.106,85.073,4.19916205]
[1772318063960,4.26187458,85.159,85.101,4.19916205]
[1772318064140,4.26187458,85.158,85.111,4.19916205]
[1772318064340,4.26187458,85.139,85.102,4.19916205]
[1772318064541,4.26187458,85.119,85.09,4.19916205]
[1772318064759,7.98551693,85.1,85.073,4.19916205]
[1772318065060,7.98551693,85.1,85.072,11.75474891]
[1772318065257,7.98551693,85.1,85.067,11.75543982]
[1772318065557,3.69383402,85.137,85.068,4.19916205]
[1772318065558,4.26187458,85.117,85.068,4.19916205]
[1772318065864,4.26187458,85.109,85.068,4.19916205]
[1772318066451,7.98551693,85.1,85.068,4.19916205]
[1772318067551,7.98551693,85.1,85.07,4.19916205]
[1772318067867,4.26187458,85.109,85.071,4.19916205]
[1772318068558,7.98551693,85.13,85.091,4.19916205]
[1772318068952,3.69383402,85.146,85.091,4.19916205]
[1772318069148,7.98551693,85.13,85.091,4.19916205]
[1772318069552,29.35862308,85.154,85.069,99.91888935]
[1772318069553,12.24739151,85.14,85.103,4.19916205]
[1772318070147,4.26187458,85.139,85.103,4.19916205]
[1772318071061,7.98551693,85.13,85.103,4.19916205]
[1772318071870,4.26187458,85.139,85.105,4.19916205]
[1772318072058,4.26187458,85.129,85.094,4.19916205]
[1772318072369,7.98551693,85.12,85.088,15.9516915]
[1772318072662,4.26187458,85.109,85.07,7.98551693]
[1772318072866,12.24739151,85.1,85.069,4.19916205]
[1772318073041,12.24739151,85.1,85.07,11.75502527]
[1772318073246,12.24739151,85.1,85.051,29.39393655]
[1772318073247,7.98551693,85.09,85.06,4.19916205]
[1772318073566,7.98551693,85.09,85.061,11.75626903]
[1772318073862,7.98551693,85.09,85.06,4.19916205]
[1772318073863,4.26187458,85.089,85.06,4.19916205]
[1772318074048,4.26187458,85.089,85.055,11.75696768]
[1772318074049,7.98551693,85.08,85.055,11.75696768]
[1772318074959,7.98551693,85.07,85.038,4.19916205]
[1772318075865,4.26187458,85.071,85.038,4.19916205]
[1772318076162,7.98551693,85.06,85.039,4.19916205]
[1772318076345,4.26187458,85.068,85.036,11.75967718]
[1772318078165,4.26187458,85.068,85.031,4.19916205]
[1772318078963,58.35086195,85.116,85.03,11.76055509]
[1772318078964,4.26187458,85.109,85.061,4.19916205]
[1772318079961,7.98551693,85.1,85.061,4.19916205]
[1772318080156,4.26187458,85.099,85.063,4.19916205]
[1772318080358,4.26187458,85.099,85.062,11.75613082]
[1772318080665,4.21925583,85.079,85.041,4.19916205]
[1772318080866,7.98551693,85.07,85.041,4.19916205]
[1772318081263,4.21925583,85.089,85.051,4.19916205]
[1772318082267,4.21925583,85.089,85.053,4.19916205]
[1772318082572,15.97179437,85.088,85.053,4.19916205]
[1772318082772,7.98551693,85.08,85.053,4.19916205]
[1772318083445,7.98551693,85.08,85.054,11.75723657]
[1772318083650,11.75281479,85.086,85.054,11.75723657]
[1772318083851,4.21925583,85.085,85.054,11.75723657]
[1772318084068,4.21925583,85.085,85.017,1.17623534]
[1772318084069,7.98551693,85.08,85.041,4.19916205]
[1772318084298,7.98551693,85.08,85.029,29.40149708]
[1772318084299,7.98551693,85.05,85.011,4.19916205]
[1772318084460,7.98551693,85.08,85.011,4.19916205]
[1772318084461,7.98551693,85.04,85.011,4.19916205]
[1772318085673,7.98551693,85.04,85.011,15.96227823]
[1772318085867,7.98551693,85.04,85.012,4.12162794]
[1772318086455,7.98551693,85.04,85.012,2.08114072]
[1772318086766,19.74482212,85.04,85.012,2.08114072]
[1772318087158,7.98551693,85.04,85.012,13.84418593]
[1772318087953,4.29505803,85.039,85.012,11.76304521]
[1772318088356,4.29505803,85.039,85.0,29.41154376]
[1772318088357,4.29505803,85.029,84.99,4.26765228]
[1772318088572,4.29505803,85.029,84.99,16.0337424]
[1772318088573,7.98551693,85.02,84.99,16.0337424]
[1772318088770,7.98551693,85.02,84.991,4.26765228]
[1772318089754,7.98551693,85.02,84.992,16.03346553]
[1772318089954,7.98551693,85.02,84.993,4.26765228]
[1772318091984,7.98551693,85.02,84.978,29.41935158]
[1772318091985,7.98551693,85.02,84.995,4.26765228]
[1772318093473,7.98551693,85.03,84.995,4.26765228]
[1772318094375,7.98551693,85.03,84.997,4.26765228]
[1772318096878,7.98551693,85.03,84.999,4.26765228]
[1772318097381,7.98551693,85.04,85.001,4.26765228]
[1772318098374,7.98551693,85.04,85.003,4.26765228]
[1772318098763,4.29505803,85.045,85.003,4.26765228]
[1772318099764,7.98551693,85.05,85.003,4.26765228]
[1772318099765,16.05367709,85.044,85.003,4.26765228]
[1772318099965,7.98551693,85.04,85.003,4.26765228]
[1772318100378,4.29505803,85.043,85.003,4.26765228]
[1772318100581,4.29505803,85.043,85.005,4.26765228]
[1772318100776,7.98551693,85.05,85.011,4.26765228]
[1772318101185,14.31700807,85.06,85.021,4.26765228]
[1772318101481,10.02195004,85.06,85.021,4.26765228]
[1772318102076,2.03643311,85.06,85.021,4.26765228]
[1772318102589,2.03643311,85.06,85.023,4.26765228]
[1772318104684,4.29505803,85.09,85.041,4.26765228]
[1772318104987,4.29505803,85.089,85.041,4.26765228]
[1772318105861,7.98551693,85.11,85.061,4.26765228]
[1772318106803,7.98551693,85.11,85.063,4.26765228]
[1772318107364,7.96354591,85.11,85.063,4.26765228]
[1772318107986,7.96354591,85.11,85.062,41.14645787]
[1772318107987,4.29505803,85.139,85.091,4.26765228]
[1772318108779,4.29505803,85.139,85.093,4.26765228]
[1772318108985,29.36493404,85.164,85.11,7.96354591]
[1772318109188,8.06354591,85.16,85.111,4.26765228]
[1772318110988,7.96354591,85.15,85.113,4.26765228]
[1772318111286,1e-08,85.164,85.134,4.26765228]
[1772318111485,4.29505803,85.179,85.141,4.26765228]
[1772318111687,7.96354591,85.17,85.141,4.26765228]
[1772318111886,7.96354591,85.17,85.112,99.86840867]
[1772318111887,7.96354591,85.16,85.112,41.12228592]
[1772318112081,7.96354591,85.16,85.12,7.96354591]
[1772318112391,4.29505803,85.169,85.12,7.96354591]
[1772318112693,7.96354591,85.17,85.12,7.96354591]
[1772318112988,4.29505804,85.183,85.141,41.1082792]
[1772318113392,1e-08,85.183,85.141,99.83439235]
[1772318113585,4.5,85.169,85.141,11.74522263]
[1772318113773,4.5,85.178,85.141,11.74522263]
[1772318114175,4.5,85.178,85.141,41.1082792]
[1772318114693,0.1,85.2,85.171,4.26765228]
[1772318114870,8.06354591,85.2,85.171,4.26765228]
[1772318115073,7.96354591,85.18,85.141,4.26765228]
[1772318115273,7.96354591,85.17,85.141,4.26765228]
[1772318115475,7.96354591,85.17,85.137,4.26765228]
[1772318116176,7.96354591,85.17,85.129,11.74687826]
[1772318116587,4.18044926,85.169,85.129,11.74687826]
[1772318117090,4.18044926,85.159,85.117,11.74853437]
[1772318117590,7.96354591,85.15,85.117,41.11987029]
[1772318117794,4.18044926,85.139,85.117,11.74853437]
[1772318118007,4.18044926,85.139,85.097,1.17512955]
[1772318118008,4.18044926,85.139,85.1,0.28432314]
[1772318118176,4.18044926,85.139,85.099,0.28432314]
[1772318118576,4.18044926,85.139,85.1,4.37200463]
[1772318118798,4.18044926,85.139,85.102,4.37200463]
[1772318119094,4.18044926,85.139,85.075,4.37200463]
[1772318119095,7.96354591,85.11,85.075,4.37200463]
[1772318119396,7.96354591,85.1,85.077,4.37200463]
[1772318119594,7.96354591,85.12,85.077,4.37200463]
[1772318119797,7.96354591,85.1,85.077,4.37200463]
[1772318120180,0.19,85.138,85.056,4.37200463]
[1772318120395,0.19,85.138,85.047,16.13020891]
[1772318120396,7.96354591,85.07,85.047,16.13020891]
[1772318120897,99.83673755,85.139,85.047,16.13020891]
[1772318120898,4.5,85.199,85.07,7.96354591]
[1772318121095,4.5,85.189,85.13,7.96354591]
[1772318121406,4.5,85.159,85.122,11.74784427]
[1772318122489,4.5,85.159,85.122,41.11745494]
[1772318123490,4.5,85.159,85.122,11.74784427]
[1772318125182,4.5,85.159,85.094,62.45170529]
[1772318125183,4.5,85.139,85.091,11.75212419]
[1772318125387,4.5,85.139,85.095,29.37865365]
[1772318126000,4.5,85.139,85.1,7.96354591]
[1772318127410,4.5,85.139,85.101,11.75074323]
[1772318128116,4.5,85.137,85.082,29.38315658]
[1772318128289,4.5,85.129,85.082,29.38315658]
[1772318130208,4.5,85.198,85.121,0.28432314]
[1772318130510,4.5,85.198,85.16,7.96354591]
[1772318131295,7.38545016,85.287,85.167,4.37200463]
[1772318131501,0.3026393,85.453,85.171,41.09379953]
[1772318131502,7.96354591,85.22,85.171,41.09379953]
[1772318131806,7.96354591,85.2,85.171,11.74108558]
[1772318132189,7.96354591,85.2,85.16,11.74260216]
[1772318132389,7.96354591,85.19,85.16,11.74260216]
[1772318132606,7.96354591,85.2,85.16,11.74260216]
[1772318132789,7.96354591,85.19,85.16,11.74260216]
[1772318133592,4.18044926,85.192,85.148,4.37200463]
[1772318134205,7.96354591,85.21,85.161,4.37200463]
[1772318134405,7.96354591,85.22,85.161,4.37200463]
[1772318135197,3.69383402,85.227,85.161,4.37200463]
[1772318135395,3.26477456,85.231,85.191,4.37200463]
[1772318135603,7.96354591,85.23,85.192,11.73819137]
[1772318136309,4.18044926,85.229,85.191,11.73822399]
[1772318136912,4.18044926,85.229,85.186,4.37200463]
[1772318137114,14.99765289,85.231,85.191,4.37200463]
[1772318137115,3.26477456,85.231,85.191,4.37200463]
[1772318137304,4.18044926,85.23,85.191,4.37200463]
[1772318137504,4.18044926,85.229,85.191,4.37200463]
[1772318137898,4.18044926,85.229,85.192,11.73819137]
[1772318138104,4.18044926,85.229,85.192,16.110196]
[1772318138304,4.18044926,85.229,85.193,4.37200463]
[1772318138810,3.26477456,85.231,85.21,7.96354591]
[1772318139017,1e-08,85.231,85.221,4.37200463]
[1772318139204,0.1,85.25,85.221,4.37200463]
[1772318139404,4.28044926,85.25,85.211,4.37200463]
[1772318139707,4.28044926,85.25,85.21,7.96354591]
[1772318139900,4.28044926,85.25,85.211,11.73557404]
[1772318140303,4.18044926,85.249,85.192,29.34547844]
[1772318140500,4.18044926,85.249,85.193,11.73805359]
[1772318140816,4.18044926,85.249,85.21,7.96354591]
[1772318140994,4.18044926,85.249,85.211,4.37200463]
[1772318141195,0.1,85.25,85.23,7.96354591]
[1772318141800,0.1,85.25,85.223,4.37200463]
[1772318142212,4.18044926,85.229,85.174,11.74059229]
[1772318142414,7.96354591,85.22,85.174,11.74059229]
[1772318142616,4.18044926,85.219,85.174,11.74059229]
[1772318142822,4.18044926,85.199,85.152,29.35910953]
[1772318143020,4.18044926,85.219,85.18,7.96354591]
[1772318143529,4.18044926,85.229,85.18,7.96354591]
[1772318144101,4.18044926,85.229,85.182,4.00605002]
[1772318144301,4.18044926,85.229,85.19,7.96354591]
[1772318144823,4.18044926,85.229,85.191,3.96705257]
[1772318145217,4.08437194,85.228,85.191,3.96705257]
[1772318146124,4.08437194,85.228,85.192,11.73819137]
[1772318148401,4.08437194,85.228,85.193,3.77575391]
[1772318149628,4.08437194,85.228,85.2,7.96354591]
[1772318149822,4.08437194,85.228,85.193,3.77575391]
[1772318150324,4.08437194,85.228,85.19,7.96354591]
[1772318150325,4.08437194,85.228,85.195,3.69764399]
[1772318150621,4.08437194,85.228,85.194,11.73791581]
[1772318153128,4.08437194,85.228,85.181,11.73970721]
[1772318153129,3.86147362,85.227,85.181,11.73970721]
[1772318153327,3.86147362,85.227,85.181,41.08897523]
[1772318153924,3.86147362,85.271,85.221,3.4467355]
[1772318154122,3.86147362,85.271,85.25,7.96354591]
[1772318154425,0.1,85.32,85.261,3.4467355]
[1772318154728,11.72071871,85.319,85.28,7.96354591]
[1772318154910,0.1,85.32,85.29,7.96354591]
[1772318155224,0.1,85.32,85.28,7.96354591]
[1772318155225,11.82063592,85.32,85.28,7.96354591]
[1772318155408,11.82063592,85.32,85.3,7.96354591]
[1772318155409,0.1,85.32,85.3,7.96354591]
[1772318155608,0.1,85.32,85.29,7.96354591]
[1772318155822,0.1,85.32,85.291,11.72456648]
[1772318156721,3.86147362,85.319,85.291,11.72456648]
[1772318157517,0.1,85.32,85.291,45.02911253]
[1772318157716,0.1,85.32,85.3,7.96354591]
[1772318159829,0.1,85.32,85.294,3.99312984]
[1772318160133,0.1,85.32,85.3,7.96354591]
[1772318160331,4.01125811,85.421,85.31,15.92709182]
[1772318160630,0.2582948,85.523,85.293,99.65647823]
[1772318160631,4.01125811,85.349,85.3,7.96354591]
[1772318160834,4.01125811,85.349,85.293,41.03502044]
[1772318161129,4.01125811,85.339,85.293,11.72429155]
[1772318161332,4.01125811,85.339,85.31,7.96354591]
[1772318161632,7.96354591,85.37,85.32,7.96354591]
[1772318162019,40.9984889,85.369,85.32,7.96354591]
[1772318162325,40.9984889,85.369,85.307,3.9749939]
[1772318162326,11.71385397,85.369,85.33,7.96354591]
[1772318162515,40.9984889,85.369,85.32,7.96354591]
[1772318163433,3.86147362,85.368,85.32,7.96354591]
[1772318163626,3.86147362,85.368,85.33,7.96354591]
[1772318164030,3.86147362,85.366,85.33,7.96354591]
[1772318164340,3.86147362,85.366,85.321,3.90370992]
[1772318164531,3.86147362,85.366,85.33,7.96354591]
[1772318164731,3.86147362,85.366,85.322,11.7203066]
[1772318164915,3.86147362,85.366,85.31,19.68544598]
[1772318165232,3.86147362,85.359,85.31,19.68544598]
[1772318165433,58.41835647,85.404,85.31,19.68544598]
[1772318165434,3.86147362,85.398,85.312,0.28432314]
[1772318165614,3.69383402,85.392,85.37,7.96354591]
[1772318165812,3.69383402,85.392,85.36,7.96354591]
[1772318166030,11.71001323,85.397,85.35,7.96354591]
[1772318166226,7.96354591,85.38,85.33,7.96354591]
[1772318166452,7.96354591,85.37,85.32,11.75937544]
[1772318166619,7.96354591,85.37,85.32,7.96354591]
[1772318166817,7.96354591,85.37,85.295,3.69383402]
[1772318166818,7.96354591,85.36,85.31,7.96354591]
[1772318167023,7.96354591,85.34,85.29,11.71867229]
[1772318167229,3.86147362,85.339,85.29,11.67838176]
[1772318167430,3.86147362,85.339,85.29,7.92325538]
[1772318167630,3.69383402,85.377,85.28,7.92325538]
[1772318167631,3.86147362,85.329,85.28,7.92325538]
[1772318167937,3.86147362,85.329,85.281,3.71489074]
[1772318168143,3.86147362,85.319,85.272,3.71489074]